bitfinex-derivatives/quotes_BTCF0:USTF0_20240905
["timestamp","ask_amount","ask_price","bid_price","bid_amount"]
[1725559461153,0.113263,56657.0,56656.0,0.002]
[1725559463442,0.088271,56652.0,56648.0,0.0002649]
[1725559463643,0.090276,56649.0,56648.0,0.0002649]
[1725559464749,0.101276,56649.0,56648.0,0.0012649]
[1725559464957,0.101276,56649.0,56648.0,0.0022649]
[1725559465146,0.101276,56649.0,56640.0,0.24]
[1725559465147,0.088278,56648.0,56639.0,0.24832554]
[1725559465451,0.30569007,56647.0,56642.0,0.088285]
[1725559465641,0.3608,56645.0,56642.0,0.088285]
[1725559465843,0.13580771,56644.0,56641.0,0.24]
[1725559466041,0.002,56642.0,56641.0,0.24]
[1725559466242,0.088289,56641.0,56639.0,0.24422554]
[1725559466445,0.21941107,56640.0,56639.0,0.24422554]
[1725559466849,0.21941107,56640.0,56636.0,0.0885599]
[1725559466850,0.088294,56637.0,56636.0,0.0002649]
[1725559467050,0.46610171,56637.0,56636.0,0.0002649]
[1725559468053,0.47010171,56637.0,56636.0,0.0002649]
[1725559468554,0.23010171,56637.0,56636.0,0.0002649]
[1725559469754,0.23910171,56637.0,56636.0,0.0012649]
[1725559470055,0.24710171,56637.0,56636.0,0.0022649]
[1725559470258,0.088297,56635.0,56630.0,0.088305]
[1725559470462,0.002,56631.0,56630.0,0.088305]
[1725559470648,0.13780771,56631.0,56630.0,0.088305]
[1725559471155,0.13780771,56631.0,56630.0,1.588305]
[1725559471853,0.14180771,56631.0,56630.0,1.588305]
[1725559472149,0.006,56631.0,56630.0,1.588305]
[1725559472556,0.011,56631.0,56630.0,1.588305]
[1725559473153,0.011,56631.0,56630.0,1.589305]
[1725559473154,0.012,56631.0,56630.0,1.589305]
[1725559473467,0.011,56631.0,56630.0,1.589305]
[1725559473855,0.01888482,56631.0,56630.0,1.588305]
[1725559474459,0.01488482,56631.0,56630.0,1.588305]
[1725559475051,0.01388482,56631.0,56630.0,1.588305]
[1725559475750,0.01188482,56631.0,56630.0,1.588305]
[1725559476654,0.01488482,56631.0,56630.0,1.588305]
[1725559477157,0.01188482,56631.0,56630.0,1.588305]
[1725559477363,0.01488482,56631.0,56630.0,1.588305]
[1725559478366,0.01588482,56631.0,56630.0,1.588305]
[1725559479056,0.01288482,56631.0,56630.0,1.588305]
[1725559479258,0.01388482,56631.0,56630.0,1.588305]
[1725559480559,0.005,56631.0,56630.0,1.588305]
[1725559480951,0.005,56631.0,56630.0,2.894675]
[1725559481662,0.005,56631.0,56630.0,1.588305]
[1725559485262,0.093304,56631.0,56630.0,1.588305]
[1725559487762,0.093304,56631.0,56630.0,1.5]
[1725559488162,0.005,56631.0,56630.0,1.588305]
[1725559488667,0.093304,56631.0,56630.0,1.588305]
[1725559489766,0.005,56631.0,56630.0,1.67661]
[1725559489959,0.181608,56631.0,56630.0,1.5]
[1725559490160,0.093304,56631.0,56630.0,1.5]
[1725559492569,0.454104,56631.0,56630.0,1.5]
[1725559492769,0.42915206,56631.0,56625.0,0.0002649]
[1725559492974,0.451111,56626.0,56625.0,0.0002649]
[1725559493164,0.84277406,56626.0,56625.0,0.0002649]
[1725559494067,0.84277406,56626.0,56625.0,0.0042649]
[1725559494571,0.84277406,56626.0,56625.0,0.0082649]
[1725559494761,0.60277406,56626.0,56625.0,0.0082649]
[1725559494966,0.84277406,56626.0,56625.0,0.0082649]
[1725559495166,0.84277406,56626.0,56625.0,1.5082649]
[1725559495471,0.779422,56626.0,56625.0,1.5082649]
[1725559495873,0.779422,56626.0,56625.0,1.5042649]
[1725559496081,0.461111,56626.0,56625.0,1.7452649]
[1725559496264,0.3728,56626.0,56625.0,1.8335779]
[1725559496564,0.3838,56626.0,56625.0,1.8305779]
[1725559496769,0.023,56626.0,56625.0,1.8305779]
[1725559497873,0.023,56626.0,56625.0,2.1913779]
[1725559499075,0.023,56626.0,56625.0,1.9513779]
[1725559499270,0.111311,56626.0,56625.0,1.5022649]
[1725559499467,0.287933,56626.0,56625.0,0.0022649]
[1725559499671,0.354533,56626.0,56625.0,0.0022649]
[1725559500170,0.266222,56626.0,56625.0,0.0022649]
[1725559501866,0.111311,56626.0,56625.0,0.0022649]
[1725559502263,0.17467597,56626.0,56625.0,0.0022649]
[1725559503472,0.111311,56626.0,56625.0,0.0022649]
[1725559504180,0.023,56626.0,56625.0,0.0905779]
[1725559504770,0.023,56626.0,56625.0,0.3305779]
[1725559505770,0.023,56626.0,56625.0,0.0905779]
[1725559506171,0.023,56626.0,56625.0,0.3305779]
[1725559507370,0.023,56626.0,56625.0,0.4188909]
[1725559507570,0.023,56626.0,56625.0,1.0370039]
[1725559507877,0.023,56626.0,56625.0,1.6370039]
[1725559507878,0.0138918,56626.0,56625.0,1.6370039]
[1725559508473,0.0138918,56626.0,56625.0,1.5486909]
[1725559509377,0.0138918,56626.0,56625.0,0.8603779]
[1725559509880,0.0138918,56626.0,56625.0,1.4603779]
[1725559510268,0.0138918,56626.0,56625.0,0.8603779]
[1725559510583,0.0138918,56626.0,56625.0,1.4603779]
[1725559510778,0.0138918,56626.0,56625.0,0.8603779]
[1725559510984,0.0138918,56626.0,56625.0,1.4603779]
[1725559511279,0.0138918,56626.0,56625.0,0.3305779]
[1725559514083,0.0138918,56626.0,56625.0,0.4188909]
[1725559514784,0.0138918,56626.0,56625.0,1.9188909]
[1725559514986,0.0138918,56626.0,56625.0,1.8305779]
[1725559518681,0.1905138,56626.0,56625.0,1.5022649]
[1725559518881,0.5513138,56626.0,56625.0,1.5022649]
[1725559519080,0.70298335,56626.0,56625.0,0.0022649]
[1725559519784,0.70298335,56626.0,56614.0,0.0041]
[1725559519785,0.088329,56615.0,56614.0,0.0041]
[1725559519978,0.088329,56615.0,56603.0,0.0041]
[1725559519979,0.088332,56613.0,56603.0,0.0041]
[1725559520185,0.9636,56615.0,56600.0,0.088352]
[1725559520186,0.3628,56604.0,56600.0,0.088352]
[1725559520385,0.3608,56604.0,56600.0,0.088352]
[1725559520584,0.6008,56609.0,56600.0,0.088352]
[1725559520786,0.06337898,56608.0,56606.0,0.24]
[1725559520988,0.3608,56609.0,56606.0,0.24]
[1725559521183,0.3608,56609.0,56602.0,0.24]
[1725559521386,0.36879283,56609.0,56602.0,0.24]
[1725559521894,0.36879283,56609.0,56606.0,0.011]
[1725559522491,0.088341,56607.0,56606.0,0.011]
[1725559522688,0.176682,56607.0,56606.0,0.011]
[1725559522880,0.618301,56607.0,56606.0,0.011]
[1725559523082,0.68167888,56607.0,56606.0,0.011]
[1725559523284,1.3700265,56607.0,56606.0,0.019]
[1725559523489,1.7308265,56607.0,56606.0,0.019]
[1725559523690,1.7308265,56607.0,56606.0,0.008]
[1725559523885,1.1308265,56607.0,56606.0,0.008]
[1725559524095,1.0424855,56607.0,56606.0,0.008]
[1725559524299,1.7308265,56607.0,56606.0,0.008]
[1725559524793,1.7318265,56607.0,56606.0,0.019]
[1725559525000,1.1318265,56607.0,56606.0,0.011]
[1725559525189,1.1318265,56607.0,56606.0,0.02]
[1725559525190,1.7328265,56607.0,56606.0,0.02]
[1725559525494,1.669442,56607.0,56606.0,0.02]
[1725559526783,0.451141,56607.0,56606.0,0.02]
[1725559527199,0.539482,56607.0,56606.0,0.02]
[1725559527896,0.451141,56607.0,56606.0,0.02]
[1725559528392,0.3628,56607.0,56606.0,0.02]
[1725559529097,0.3628,56607.0,56606.0,1.52]
[1725559529983,0.3628,56607.0,56606.0,0.02]
[1725559530289,0.451141,56607.0,56606.0,0.02]
[1725559531097,0.3628,56607.0,56606.0,0.02]
[1725559532098,0.3628,56607.0,56606.0,0.108343]
[1725559532296,0.002,56607.0,56606.0,0.709143]
[1725559532693,0.002,56607.0,56606.0,0.348343]
[1725559536390,0.002,56607.0,56606.0,0.436686]
[1725559537202,0.002,56607.0,56606.0,0.348343]
[1725559538294,0.002,56607.0,56606.0,0.108343]
[1725559538489,0.090341,56607.0,56606.0,0.02]
[1725559538689,0.178682,56607.0,56606.0,0.02]
[1725559539091,0.002,56607.0,56606.0,0.108343]
[1725559539298,0.002,56607.0,56606.0,0.348343]
[1725559541403,0.002,56607.0,56606.0,0.108343]
[1725559541606,0.002,56607.0,56606.0,0.348343]
[1725559542509,0.002,56607.0,56606.0,0.436686]
[1725559542811,0.0002649,56610.0,56609.0,0.176676]
[1725559543002,0.0002649,56610.0,56609.0,0.416676]
[1725559543697,0.0002649,56610.0,56609.0,0.328338]
[1725559543899,0.0886009,56610.0,56609.0,0.088338]
[1725559544408,0.088341,56607.0,56606.0,0.02]
[1725559544702,0.178682,56607.0,56606.0,0.009]
[1725559545104,0.090341,56607.0,56606.0,0.009]
[1725559545807,0.088343,56606.0,56605.0,0.088343]
[1725559546109,0.090343,56606.0,56605.0,0.088343]
[1725559546608,0.002,56606.0,56605.0,0.088343]
[1725559546805,0.002,56606.0,56605.0,0.486687]
[1725559547005,0.002,56606.0,56605.0,1.786931]
[1725559547309,0.003,56606.0,56605.0,1.797931]
[1725559547513,0.0002649,56610.0,56609.0,0.088338]
[1725559548013,0.0002649,56610.0,56609.0,0.50168693]
[1725559548417,0.0002649,56610.0,56609.0,0.449138]
[1725559548907,0.0012649,56610.0,56609.0,0.456138]
[1725559550015,0.0012649,56610.0,56609.0,0.464138]
[1725559554011,0.0012649,56610.0,56609.0,0.51672042]
[1725559554321,0.0896009,56610.0,56609.0,0.51672042]
[1725559554511,0.0896009,56610.0,56609.0,0.51673406]
[1725559555508,0.0896009,56610.0,56609.0,0.015]
[1725559555814,0.1779369,56610.0,56609.0,0.015]
[1725559556012,0.5387369,56610.0,56609.0,0.015]
[1725559556214,0.60210866,56610.0,56609.0,0.015]
[1725559556818,0.67120866,56610.0,56609.0,0.015]
[1725559557813,0.31040866,56610.0,56609.0,0.015]
[1725559558423,0.67120866,56610.0,56609.0,0.015]
[1725559560023,0.58287266,56610.0,56609.0,0.015]
[1725559560220,0.5195009,56610.0,56609.0,0.015]
[1725559560425,0.0012649,56610.0,56609.0,0.413338]
[1725559560719,0.0012649,56610.0,56609.0,2.001676]
[1725559560925,0.0012649,56610.0,56609.0,2.136376]
[1725559561221,0.0012649,56610.0,56609.0,2.754674]
[1725559561523,0.088298,56635.0,56609.0,2.754674]
[1725559561524,0.06335955,56621.0,56620.0,0.088321]
[1725559561718,0.0663,56627.0,56620.0,0.3608]
[1725559561719,0.05525104,56625.0,56620.0,0.3608]
[1725559561927,0.05525104,56625.0,56624.0,0.398315]
[1725559562111,0.0672,56630.0,56629.0,0.088307]
[1725559562112,0.00092,56630.0,56629.0,0.088307]
[1725559562431,0.15165955,56634.0,56630.0,0.088305]
[1725559562432,0.0883,56634.0,56630.0,0.088305]
[1725559562724,0.0883,56634.0,56630.0,0.14086466]
[1725559562725,0.088304,56632.0,56630.0,0.14086466]
[1725559562927,0.09715858,56631.0,56630.0,0.14086466]
[1725559563124,0.088304,56631.0,56630.0,0.088305]
[1725559563631,0.09694378,56631.0,56630.0,0.088305]
[1725559564016,0.00863978,56631.0,56630.0,0.088305]
[1725559564216,0.4493629,56635.0,56631.0,0.088303]
[1725559564417,0.4493629,56635.0,56632.0,0.088302]
[1725559564624,0.3610649,56635.0,56634.0,0.088299]
[1725559564815,0.0002649,56635.0,56634.0,0.759099]
[1725559565131,0.0002649,56635.0,56634.0,1.888819]
[1725559565311,0.0002649,56635.0,56634.0,1.98504546]
[1725559565511,0.0002649,56635.0,56634.0,0.43070922]
[1725559565721,0.0142649,56635.0,56634.0,0.449099]
[1725559565926,0.0142649,56635.0,56634.0,0.759099]
[1725559566226,0.0002649,56635.0,56634.0,1.35867023]
[1725559566428,0.0192649,56635.0,56634.0,1.35967023]
[1725559566627,0.0192649,56635.0,56634.0,1.289819]
[1725559567421,0.0192649,56635.0,56634.0,1.889819]
[1725559567627,0.0192649,56635.0,56634.0,1.289819]
[1725559568028,0.0122649,56635.0,56634.0,1.289819]
[1725559568431,0.0122649,56635.0,56634.0,1.957619]
[1725559568722,9e-07,56635.0,56634.0,2.27076823]
[1725559568920,9e-07,56635.0,56634.0,2.200917]
[1725559569123,0.088275,56650.0,56635.0,0.088297]
[1725559569318,0.42652,56655.0,56643.0,0.6708]
[1725559569519,0.42656001,56655.0,56647.0,0.31]
[1725559569722,0.16117908,56655.0,56647.0,0.31]
[1725559569925,0.16117908,56655.0,56653.0,0.3608]
[1725559570126,0.088268,56654.0,56653.0,0.3608]
[1725559570325,0.07291208,56655.0,56651.0,0.449071]
[1725559570326,0.08827,56653.0,56651.0,0.449071]
[1725559570522,0.002,56652.0,56651.0,0.449071]
[1725559570836,0.090271,56652.0,56651.0,0.088271]
[1725559571932,0.098271,56652.0,56651.0,0.089271]
[1725559572634,0.098271,56652.0,56651.0,0.090271]
[1725559572937,0.01,56652.0,56651.0,0.090271]
[1725559573339,0.01,56652.0,56651.0,0.400271]
[1725559573633,0.01,56652.0,56651.0,0.849343]
[1725559573837,0.01,56652.0,56651.0,0.761071]
[1725559575036,0.01,56652.0,56651.0,0.451071]
[1725559575426,0.547342,56652.0,56651.0,0.001]
[1725559575631,0.176566,56644.0,56643.0,0.0043649]
[1725559575824,0.849366,56644.0,56643.0,0.0002649]
[1725559576838,0.76886972,56644.0,56643.0,0.0002649]
[1725559577033,0.09806972,56644.0,56643.0,0.0002649]
[1725559577534,0.50135272,56644.0,56643.0,0.0002649]
[1725559577740,0.0883,56633.0,56632.0,0.0041]
[1725559578035,0.0883,56633.0,56624.0,0.3608]
[1725559578036,0.088305,56631.0,56624.0,0.3608]
[1725559578235,0.002,56625.0,56624.0,0.449115]
[1725559578437,0.002,56625.0,56624.0,0.759115]
[1725559578646,0.002,56625.0,56624.0,0.84743]
[1725559579040,0.0002649,56630.0,56629.0,0.088307]
[1725559579339,0.0002649,56630.0,56629.0,0.759107]
[1725559580236,0.0002649,56630.0,56629.0,0.398307]
[1725559581737,0.0012649,56630.0,56629.0,0.420307]
[1725559582833,0.0012649,56630.0,56629.0,0.781107]
[1725559583029,0.0012649,56630.0,56629.0,0.774107]
[1725559583335,0.0012649,56630.0,56629.0,0.78202029]
[1725559584140,0.0002649,56630.0,56629.0,0.77102029]
[1725559584330,0.0002649,56630.0,56629.0,0.77402029]
[1725559584734,0.0002649,56630.0,56629.0,0.77102029]
[1725559584929,0.0002649,56630.0,56629.0,0.77002029]
[1725559585137,0.0002649,56630.0,56629.0,0.77402029]
[1725559585337,0.0002649,56630.0,56629.0,0.456107]
[1725559585832,0.0002649,56630.0,56629.0,0.766107]
[1725559586547,0.0002649,56630.0,56629.0,0.765107]
[1725559587045,0.0002649,56630.0,56629.0,0.853414]
[1725559587435,0.0002649,56630.0,56629.0,0.850414]
[1725559587746,0.0002649,56630.0,56629.0,0.852414]
[1725559587944,0.0002649,56630.0,56629.0,2.352414]
[1725559589540,0.0002649,56630.0,56629.0,2.264107]
[1725559589739,0.0002649,56630.0,56629.0,2.042414]
[1725559591149,0.0002649,56630.0,56629.0,2.041414]
[1725559591540,0.0002649,56630.0,56629.0,2.038414]
[1725559591740,0.0002649,56630.0,56629.0,2.041414]
[1725559592337,0.0002649,56630.0,56629.0,2.038414]
[1725559592643,0.0885699,56630.0,56629.0,1.952107]
[1725559593343,0.1768749,56630.0,56629.0,1.503]
[1725559593551,0.0885699,56630.0,56629.0,1.503]
[1725559594257,0.09629201,56630.0,56629.0,1.503]
[1725559594842,0.09629201,56630.0,56629.0,0.091307]
[1725559599756,0.09629201,56630.0,56629.0,0.003]
[1725559599954,0.09629201,56630.0,56629.0,0.091307]
[1725559602566,0.09629201,56630.0,56629.0,0.003]
[1725559604050,0.09629201,56630.0,56629.0,0.091307]
[1725559604658,0.0885699,56630.0,56629.0,0.091307]
[1725559604956,0.0628,56640.0,56635.0,0.088297]
[1725559605159,0.088297,56636.0,56632.0,0.24]
[1725559605661,0.088297,56636.0,56635.0,0.088297]
[1725559606953,0.091297,56636.0,56635.0,0.088297]
[1725559608154,0.093297,56636.0,56635.0,0.089297]
[1725559609255,0.181595,56636.0,56635.0,0.001]
[1725559609560,0.421595,56636.0,56635.0,0.001]
[1725559609764,0.4849401,56636.0,56635.0,0.001]
[1725559610762,0.2449401,56636.0,56635.0,0.001]
[1725559610954,0.181595,56636.0,56635.0,0.001]
[1725559611152,0.088303,56633.0,56632.0,0.088302]
[1725559611364,0.090303,56633.0,56632.0,0.088302]
[1725559611962,0.002,56633.0,56632.0,0.088302]
[1725559612460,0.002,56633.0,56632.0,0.176604]
[1725559612658,0.002,56633.0,56632.0,0.244004]
[1725559613464,0.005,56633.0,56632.0,0.244004]
[1725559613662,0.005,56633.0,56632.0,0.332306]
[1725559613864,0.0633451,56638.0,56637.0,0.264882]
[1725559614160,0.0002649,56641.0,56640.0,0.17658]
[1725559614558,0.0002649,56641.0,56640.0,1.67658]
[1725559614759,0.0002649,56641.0,56640.0,2.03738]
[1725559614958,0.0089,56662.0,56658.0,0.088262]
[1725559615160,0.0086804,56664.0,56658.0,0.328262]
[1725559615161,0.05521943,56659.0,56658.0,0.328262]
[1725559615564,0.217354,56663.0,56660.0,0.088258]
[1725559616069,0.1291,56663.0,56660.0,0.088258]
[1725559616264,0.08826,56659.0,56658.0,0.24]
[1725559616568,0.09026,56659.0,56658.0,0.24]
[1725559618069,0.09126,56659.0,56658.0,0.328262]
[1725559618457,0.09126,56659.0,56658.0,0.088262]
[1725559620866,0.088265,56656.0,56655.0,0.0002649]
[1725559621068,0.77933,56656.0,56655.0,0.0002649]
[1725559621269,1.820585,56656.0,56655.0,0.0002649]
[1725559621869,0.691065,56656.0,56655.0,0.0002649]
[1725559622177,0.3628,56656.0,56655.0,0.2432649]
[1725559622365,0.002,56656.0,56655.0,0.2432649]
[1725559622559,0.002,56656.0,56655.0,0.3315309]
[1725559623169,0.451065,56656.0,56655.0,0.0945309]
[1725559623361,0.090265,56656.0,56655.0,0.0945309]
[1725559623869,0.330265,56656.0,56655.0,0.0945309]
[1725559624173,0.41853,56656.0,56655.0,0.0062649]
[1725559624373,1.54805,56656.0,56655.0,0.0062649]
[1725559624767,0.090265,56656.0,56655.0,0.0062649]
[1725559625169,0.002,56656.0,56655.0,0.2462649]
[1725559625370,0.002,56656.0,56655.0,0.3345309]
[1725559625572,0.002,56656.0,56655.0,0.0945309]
[1725559626076,0.090265,56656.0,56655.0,0.0062649]
[1725559626469,1.30885,56656.0,56655.0,0.0062649]
[1725559626768,0.77933,56656.0,56655.0,0.0062649]
[1725559627370,0.41853,56656.0,56655.0,0.0062649]
[1725559628478,1.54805,56656.0,56655.0,0.0062649]
[1725559629175,0.088282,56645.0,56644.0,0.414483]
[1725559629379,0.090282,56645.0,56644.0,0.088283]
[1725559629566,0.088285,56643.0,56642.0,0.3608]
[1725559629765,0.090285,56643.0,56642.0,0.3608]
[1725559630078,0.088293,56638.0,56637.0,0.0002649]
[1725559630279,0.691093,56638.0,56637.0,0.0002649]
[1725559630576,0.51442505,56638.0,56637.0,0.0002649]
[1725559631975,0.06533205,56638.0,56637.0,0.0002649]
[1725559632181,0.002,56638.0,56637.0,0.0002649]
[1725559632478,0.007,56638.0,56637.0,0.0885589]
[1725559632777,0.013,56638.0,56637.0,1.5128329]
[1725559633179,0.002,56638.0,56637.0,3.0158329]
[1725559633481,0.002,56638.0,56637.0,3.47284842]
[1725559633679,0.002,56638.0,56637.0,3.47084842]
[1725559633877,0.003,56638.0,56637.0,3.47084842]
[1725559634377,0.002,56638.0,56637.0,3.47084842]
[1725559634575,0.003,56638.0,56637.0,3.47484842]
[1725559634882,0.0002649,56648.0,56647.0,0.088279]
[1725559635079,0.0002649,56648.0,56647.0,0.689079]
[1725559635487,0.0002649,56648.0,56647.0,2.189079]
[1725559636275,0.0002649,56648.0,56647.0,2.191079]
[1725559636477,0.0002649,56648.0,56647.0,2.279358]
[1725559636685,0.0002649,56648.0,56647.0,2.808958]
[1725559636882,0.06333205,56662.0,56654.0,0.088267]
[1725559637081,0.06333205,56667.0,56661.0,0.6008]
[1725559637278,0.09689438,56668.0,56667.0,0.24]
[1725559637475,0.088246,56668.0,56667.0,0.328248]
[1725559637983,0.00862541,56670.0,56669.0,0.088244]
[1725559638283,0.00862541,56670.0,56662.0,0.0885189]
[1725559638284,0.088252,56665.0,56662.0,0.0885189]
[1725559638470,0.090254,56663.0,56662.0,0.0002649]
[1725559638774,0.002,56663.0,56662.0,0.0885199]
[1725559640181,0.008,56663.0,56662.0,0.0885199]
[1725559641083,0.008,56663.0,56662.0,1.5885199]
[1725559642981,0.013,56663.0,56662.0,1.5885199]
[1725559646286,0.013,56663.0,56662.0,1.6767749]
[1725559646594,0.013,56663.0,56662.0,1.68440246]
[1725559648190,0.013,56663.0,56662.0,0.0885199]
[1725559648494,0.101254,56663.0,56662.0,0.0002649]
[1725559648789,0.429508,56663.0,56662.0,0.0002649]
[1725559648990,0.64597737,56663.0,56662.0,0.0002649]
[1725559649590,0.65394981,56663.0,56662.0,0.0002649]
[1725559650495,0.088263,56657.0,56656.0,0.00156]
[1725559650791,0.088272,56652.0,56648.0,0.33005058]
[1725559650980,0.088272,56652.0,56649.0,0.3608]
[1725559651389,0.088272,56652.0,56650.0,1.5]
[1725559651788,0.088272,56652.0,56651.0,0.088272]
[1725559652381,0.089272,56652.0,56651.0,0.088272]
[1725559652978,0.088272,56652.0,56651.0,0.088272]
[1725559653191,0.001,56652.0,56651.0,0.095272]
[1725559653381,0.001,56652.0,56651.0,0.10013119]
[1725559653581,0.002,56652.0,56651.0,0.10013119]
[1725559654287,0.002,56652.0,56651.0,0.10713119]
[1725559654686,0.002,56652.0,56651.0,0.34713119]
[1725559654893,0.002,56652.0,56651.0,0.50540319]
[1725559655299,0.002,56652.0,56651.0,2.00540319]
[1725559656283,0.002,56652.0,56651.0,3.22323519]
[1725559657377,0.002,56652.0,56651.0,2.09367519]
[1725559660191,0.002,56652.0,56651.0,1.69540319]
[1725559660387,0.002,56652.0,56651.0,0.10713119]
[1725559660589,0.002,56652.0,56651.0,0.01885919]
[1725559660590,0.178542,56652.0,56651.0,0.01885919]
[1725559661087,0.090271,56652.0,56651.0,0.01885919]
[1725559661792,0.090271,56652.0,56651.0,0.10713119]
[1725559664088,0.090271,56652.0,56651.0,0.01885919]
[1725559665295,0.09813567,56652.0,56651.0,0.01885919]
[1725559665696,1.31596667,56652.0,56651.0,0.01885919]
[1725559666506,0.71596667,56652.0,56651.0,0.01885919]
[1725559667892,0.18640667,56652.0,56651.0,0.01885919]
[1725559668496,0.09813567,56652.0,56651.0,0.01885919]
[1725559672401,0.18640667,56652.0,56651.0,0.01885919]
[1725559673906,0.09813567,56652.0,56651.0,0.10713119]
[1725559674091,0.002,56652.0,56651.0,0.43540319]
[1725559674490,0.002,56652.0,56651.0,0.52367519]
[1725559675294,0.002,56652.0,56651.0,0.59333327]
[1725559677204,0.002,56652.0,56651.0,1.72289327]
[1725559677403,0.0002649,56657.0,56656.0,0.17653]
[1725559677604,0.0002649,56657.0,56656.0,0.77733]
[1725559678498,0.0002649,56657.0,56656.0,0.78218919]
[1725559678698,0.0002649,56657.0,56656.0,0.78318919]
[1725559679311,0.0002649,56657.0,56656.0,0.78418919]
[1725559680103,0.0002649,56657.0,56656.0,0.45592419]
[1725559680307,0.0002649,56657.0,56656.0,0.69592419]
[1725559680508,0.0002649,56657.0,56656.0,0.83664774]
[1725559680812,0.0002649,56657.0,56656.0,0.78418919]
[1725559681105,0.0002649,56657.0,56656.0,0.83663308]
[1725559681308,0.0002649,56657.0,56656.0,0.83661656]
[1725559681906,0.0695,56669.0,56656.0,1.49717919]
[1725559682106,0.00981118,56674.0,56672.0,0.08824]
[1725559682310,0.00981118,56674.0,56673.0,0.088238]
[1725559682311,0.00877117,56674.0,56673.0,0.088238]
[1725559682902,0.00877117,56674.0,56673.0,1.95389719]
[1725559683803,0.00877117,56674.0,56673.0,1.86565919]
[1725559684003,0.87428217,56674.0,56673.0,0.00585919]
[1725559684204,2.06693661,56674.0,56673.0,0.00585919]
[1725559684914,2.06993661,56674.0,56673.0,0.00685919]
[1725559685108,1.98169961,56674.0,56673.0,0.00685919]
[1725559685308,2.06993661,56674.0,56673.0,0.00685919]
[1725559689707,1.46993661,56674.0,56673.0,0.00685919]
[1725559689907,1.07840517,56674.0,56673.0,0.00685919]
[1725559690108,0.54904517,56674.0,56673.0,0.00685919]
[1725559690420,0.10000817,56674.0,56673.0,0.33509719]
[1725559693516,0.46080817,56674.0,56673.0,0.00685919]
[1725559693711,0.54904517,56674.0,56673.0,0.00685919]
[1725559694304,1.07840517,56674.0,56673.0,0.00685919]
[1725559695104,0.54904517,56674.0,56673.0,0.00685919]
[1725559696415,0.10000817,56674.0,56673.0,0.24685919]
[1725559696719,0.01177117,56674.0,56673.0,0.69589719]
[1725559697916,0.51648217,56674.0,56673.0,0.36765919]
[1725559698119,0.57978147,56674.0,56673.0,0.36765919]
[1725559699713,0.94058147,56674.0,56673.0,0.00685919]
[1725559702418,0.85234447,56674.0,56673.0,0.00685919]
[1725559702619,0.52410747,56674.0,56673.0,0.00685919]
[1725559703616,0.16330747,56674.0,56673.0,0.00685919]
[1725559703823,0.10000817,56674.0,56673.0,0.00685919]
[1725559704723,0.01177117,56674.0,56673.0,0.09509719]
[1725559706237,0.01177117,56674.0,56673.0,0.16429719]
[1725559706914,0.01177117,56674.0,56673.0,0.25253519]
[1725559707319,0.01177117,56674.0,56673.0,0.16429719]
[1725559707725,0.0002649,56679.0,56673.0,1.29365719]
[1725559707918,0.0041,56693.0,56673.0,1.29365719]
[1725559707919,0.0041,56693.0,56687.0,0.176432]
[1725559708120,0.0882,56698.0,56687.0,0.6008]
[1725559708317,0.0701,56701.0,56700.0,0.088196]
[1725559708524,0.01674152,56701.0,56700.0,0.09305519]
[1725559708824,0.0634,56705.0,56703.0,0.088191]
[1725559708825,0.08819,56704.0,56703.0,0.088191]
[1725559709126,0.0634,56705.0,56700.0,0.00485919]
[1725559709127,0.088195,56701.0,56700.0,0.00485919]
[1725559709512,0.090195,56701.0,56700.0,0.00485919]
[1725559709921,0.090195,56701.0,56700.0,0.00585919]
[1725559711513,0.090195,56701.0,56700.0,0.00685919]
[1725559715919,0.090195,56701.0,56700.0,0.09505519]
[1725559716325,0.090195,56701.0,56700.0,0.09405519]
[1725559716525,0.002,56701.0,56700.0,0.09505519]
[1725559716922,0.002,56701.0,56700.0,0.52315519]
[1725559717130,0.002,56701.0,56700.0,0.58675519]
[1725559717321,0.002,56701.0,56700.0,0.65335519]
[1725559717821,0.002,56701.0,56700.0,2.08675519]
[1725559719430,0.002,56701.0,56700.0,2.17495119]
[1725559719931,0.002,56701.0,56700.0,1.59505519]
[1725559720131,0.002,56701.0,56700.0,0.09505519]
[1725559720325,0.002,56701.0,56700.0,0.69585519]
[1725559721220,0.002,56701.0,56700.0,0.78405119]
[1725559721420,0.002,56701.0,56700.0,0.69585519]
[1725559721826,0.002,56701.0,56700.0,0.33505519]
[1725559722230,0.002,56701.0,56700.0,0.78405119]
[1725559722427,0.002,56701.0,56700.0,0.69585519]
[1725559722633,0.002,56701.0,56700.0,2.00132719]
[1725559723130,9e-07,56701.0,56700.0,2.08952319]
[1725559723331,0.00026466,56706.0,56705.0,0.264564]
[1725559723523,0.00026466,56706.0,56705.0,2.97022319]
[1725559723725,0.00026466,56706.0,56705.0,2.89926319]
[1725559724026,0.00026466,56706.0,56705.0,3.49926319]
[1725559724427,0.00026466,56706.0,56705.0,2.89926319]
[1725559725029,0.00026466,56706.0,56705.0,2.90126319]
[1725559725542,0.00026466,56706.0,56705.0,2.81307519]
[1725559726036,0.00026466,56706.0,56705.0,0.45584719]
[1725559727831,0.00026466,56706.0,56705.0,0.09504719]
[1725559728934,0.08845166,56706.0,56705.0,0.09504719]
[1725559731235,0.09613026,56706.0,56705.0,0.09504719]
[1725559731439,0.09613026,56706.0,56705.0,0.00685919]
[1725559731642,0.18431726,56706.0,56705.0,0.00685919]
[1725559733639,1.40154426,56706.0,56705.0,0.00685919]
[1725559733850,0.088202,56696.0,56695.0,0.00026466]
[1725559734145,0.088202,56696.0,56684.0,0.0041]
[1725559734146,0.088218,56686.0,56684.0,0.0041]
[1725559734443,0.088221,56684.0,56683.0,0.449022]
[1725559734642,0.090221,56684.0,56683.0,0.449022]
[1725559734839,0.088221,56684.0,56683.0,1.8608]
[1725559735041,0.088221,56684.0,56683.0,0.3608]
[1725559735740,0.088221,56684.0,56683.0,0.3668]
[1725559735946,0.002,56686.0,56683.0,0.6068]